fUST/lending_fUST_20260316
["ID","MTS","AMOUNT","RATE_DAILY","PERIOD"]
[408430274,1773600644380,-2340.38,0.00013698,2]
[408430275,1773600644391,-2340.38,0.00013698,2]
[408430276,1773600644400,-2340.38,0.00013698,2]
[408430277,1773600644410,-2340.38,0.00013698,2]
[408430278,1773600644420,-2340.38,0.00013698,2]
[408430279,1773600644429,-2340.38,0.00013698,2]
[408430280,1773600644439,-2340.38,0.00013698,2]
[408430281,1773600644448,-2340.38,0.00013698,2]
[408430282,1773600644458,-2340.38,0.00013698,2]
[408430283,1773600644468,-2340.38,0.00013698,2]
[408430284,1773600644478,-2340.38,0.00013698,2]
[408430285,1773600644488,-2340.38,0.00013698,2]
[408430286,1773600644498,-2340.59,0.00013698,2]
[408430287,1773600644507,-500.0,0.00013698,2]
[408430288,1773600644517,-500.0,0.00013698,2]
[408430289,1773600644527,-500.0,0.00013698,2]
[408430290,1773600644536,-500.0,0.00013698,2]
[408430291,1773600644546,-500.0,0.00013698,2]
[408430292,1773600644556,-500.0,0.00013698,2]
[408430293,1773600644565,-500.0,0.00013698,2]
[408430294,1773600644574,-500.0,0.00013698,2]
[408430295,1773600644583,-291.88,0.00013698,2]
[408430296,1773600644594,-500.0,0.00013698,2]
[408430297,1773600644604,-500.0,0.00013698,2]
[408430298,1773600644615,-500.0,0.00013698,2]
[408430299,1773600644624,-500.0,0.00013698,2]
[408430300,1773600644634,-500.0,0.00013698,2]
[408430301,1773600644643,-1747.19,0.00013698,2]
[408430302,1773600644652,-1747.19,0.00013698,2]
[408430303,1773600644662,-1747.19,0.00013698,2]
[408430304,1773600644672,-1747.19,0.00013698,2]
[408430305,1773600644681,-1747.19,0.00013698,2]
[408430306,1773600644691,-1747.19,0.00013698,2]
[408430307,1773600644700,-1747.19,0.00013698,2]
[408430308,1773600644712,-1747.19,0.00013698,2]
[408430309,1773600644721,-1747.19,0.00013698,2]
[408430310,1773600644731,-1747.19,0.00013698,2]
[408430311,1773600644741,-1747.19,0.00013698,2]
[408430312,1773600644750,-1747.19,0.00013698,2]
[408430313,1773600644760,-1747.19,0.00013698,2]
[408430314,1773600644770,-1747.19,0.00013698,2]
[408430315,1773600644780,-1747.19,0.00013698,2]
[408430316,1773600644789,-1747.19,0.00013698,2]
[408430317,1773600644799,-1747.19,0.00013698,2]
[408430318,1773600644809,-1747.19,0.00013698,2]
[408430319,1773600644818,-1747.19,0.00013698,2]
[408430320,1773600644827,-1747.19,0.00013698,2]
[408430321,1773600644837,-1747.19,0.00013698,2]
[408430322,1773600644846,-1747.19,0.00013698,2]
[408430323,1773600644855,-1747.19,0.00013698,2]
[408430324,1773600644865,-1747.19,0.00013698,2]
[408430325,1773600644875,-1747.19,0.00013698,2]
[408430326,1773600644884,-1747.19,0.00013698,2]
[408430327,1773600644894,-1747.19,0.00013698,2]
[408430328,1773600644904,-1747.19,0.00013698,2]
[408430329,1773600644913,-1747.19,0.00013698,2]
[408430330,1773600644923,-3418.74,0.00013698,2]
[408430331,1773600644932,-156.0,0.00013699,2]
[408430332,1773600644941,-1996.546847,0.00013699,2]
[408430333,1773600644951,-11548.5401852,0.00013699,2]
[408430334,1773600644961,-2971.1600425,0.00013699,2]
[408430335,1773600644971,-1000.0,0.00013699,2]
[408430336,1773600644980,-500.0,0.00013699,2]
[408430342,1773600645221,-500.0,0.00013699,2]
[408430343,1773600645235,-500.0,0.00013699,2]
[408430345,1773600645245,-184.95017515,0.00013699,2]
[408430346,1773600645255,-154.53302968,0.00013699,2]
[408430347,1773600645264,-500.0,0.00013699,2]
[408430348,1773600645275,-500.0,0.00013699,2]
[408430349,1773600645287,-500.0,0.00013699,2]
[408430350,1773600645297,-500.0,0.00013699,2]
[408430351,1773600645307,-563.24803056,0.00013699,2]
[408430353,1773600645316,-500.0,0.00013699,2]
[408430354,1773600645326,-500.0,0.00013699,2]
[408430356,1773600645336,-500.0,0.00013699,2]
[408430358,1773600645345,-2000.0,0.00013699,7]
[408430360,1773600645355,-400.44043134,0.00013699,2]
[408430362,1773600645366,-500.0,0.00013699,2]
[408430364,1773600645376,-500.0,0.00013699,2]
[408430366,1773600645386,-500.0,0.00013699,2]
[408430368,1773600645395,-1000.0,0.00013699,2]
[408430369,1773600645404,-1500.0,0.00013699,2]
[408430370,1773600645414,-1500.0,0.00013699,2]
[408430371,1773600645423,-1500.0,0.00013699,2]
[408430374,1773600645441,-194.99138939,0.000138,2]
[408430376,1773600645453,-100000.0,0.0001399,2]
[408430377,1773600645463,-1108.067055,0.0001399,2]
[408430378,1773600645473,-1108.067055,0.0001399,2]
[408430379,1773600645483,-1108.067055,0.0001399,2]
[408430380,1773600645493,-1108.067055,0.0001399,2]
[408430381,1773600645503,-151.0,0.0001399,2]
[408430382,1773600645513,-151.0,0.0001399,2]
[408430383,1773600645523,-151.0,0.0001399,2]
[408430384,1773600645534,-489.61630914,0.00013993,2]
[408430385,1773600645543,-2773.56790519,0.000141,2]
[408430386,1773600645555,-600.0,0.00014221,2]
[408430387,1773600645565,-417.96506394,0.00014247,2]
[408430388,1773600645575,-1000.0,0.00014247,2]
[408430389,1773600645585,-1000.0,0.00014247,2]
[408430390,1773600645595,-1000.0,0.00014247,2]
[408430391,1773600645606,-1018.68901106,0.00014247,2]
[408430392,1773600645616,-1000.0,0.00014247,2]
[408430393,1773600645626,-1000.0,0.00014247,2]
[408430394,1773600645635,-1000.0,0.00014247,2]
[408430395,1773600645646,-1000.0,0.00014247,2]
[408430396,1773600645656,-1000.0,0.00014247,2]
[408430397,1773600645666,-722.2273881,0.00014247,2]
[408430398,1773600645675,-1000.0,0.00014247,2]
[408430399,1773600645686,-1000.0,0.00014247,2]
[408430400,1773600645696,-160.0,0.00014275,4]
[408430401,1773600645707,-5000.0,0.00014504,2]
[408430402,1773600645718,-10000.0,0.00014504,2]
[408430403,1773600645730,-500.0,0.00014598,2]
[408430404,1773600645740,-1000.0,0.00014638,2]
[408430405,1773600645750,-492.0,0.00014638,2]
[408430406,1773600645760,-2876.18991768,0.00014648,2]
[408430407,1773600645770,-5000.0,0.00014649,2]
[408430408,1773600645780,-406.26784,0.000147,7]
[408430409,1773600645790,-160.0,0.000147,7]
[408430410,1773600645799,-256.701808,0.000147,7]
[408430411,1773600645809,-353.403616,0.000147,7]
[408430412,1773600645819,-450.105424,0.000147,7]
[408430413,1773600645828,-546.807232,0.000147,7]
[408430414,1773600645837,-643.50904,0.000147,7]
[408430415,1773600645847,-740.210848,0.000147,7]
[408430416,1773600645857,-836.912656,0.000147,7]
[408430417,1773600645866,-933.614464,0.000147,7]
[408430418,1773600645876,-1030.316272,0.000147,7]
[408430419,1773600645886,-375.028482,0.000147,7]
[408430420,1773600645896,-175.690799,0.000147,7]
[408430421,1773600645905,-189.902439,0.000147,7]
[408430422,1773600645915,-160.0,0.000147,7]
[408430423,1773600645924,-178.509398,0.000147,7]
[408430424,1773600645934,-197.018796,0.000147,7]
[408430425,1773600645943,-215.528195,0.000147,7]
[408430426,1773600645958,-234.037593,0.000147,7]
[408430427,1773600645968,-252.546992,0.000147,7]
[408430428,1773600645977,-375.836567,0.000147,7]
[408430429,1773600645988,-160.0,0.000147,7]
[408430430,1773600645998,-202.22598,0.000147,7]
[408430431,1773600646008,-244.45196,0.000147,7]
[408430432,1773600646018,-286.67794,0.000147,7]
[408430433,1773600646028,-900.0,0.00014768,2]
[408430434,1773600646038,-501.73215302,0.00014795,2]
[408430435,1773600646047,-502.25507613,0.00014795,2]
[408430436,1773600646057,-1500.0,0.00014795,2]
[408430437,1773600646067,-501.11378651,0.00014795,2]
[408430438,1773600646078,-500.62957938,0.00014795,2]
[408430439,1773600646090,-568.66535809,0.00014795,2]
[408430440,1773600646111,-1046.18758838,0.00014795,2]
[408430441,1773600646121,-1500.0,0.00014795,2]
[408430442,1773600646131,-1500.0,0.00014795,2]
[408430443,1773600646142,-1500.0,0.00014795,2]
[408430444,1773600646152,-154.995606,0.00014795,2]
[408430445,1773600646162,-303.62,0.00014807,7]
[408430446,1773600646171,-2000.0,0.00014863,7]
[408430447,1773600646181,-152.59166234,0.000149,2]
[408430448,1773600646191,-152.59166233,0.000149,2]
[408430449,1773600646200,-160.0,0.00014938,5]
[408430450,1773600646211,-500.0,0.00014962,2]
[408430451,1773600646221,-500.0,0.00014999,2]
[408430452,1773600646230,-9746.36367706,0.00015,2]
[408430453,1773600646240,-2996.0,0.00015,2]
[408430454,1773600646250,-12365.0,0.00015,2]
[408430455,1773600646259,-807.33127745,0.00015,2]
[408430456,1773600646270,-1025.0,0.00015,2]
[408430457,1773600646281,-270.83333333,0.00015,2]
[408430458,1773600646293,-500.0,0.00015,2]
[408430459,1773600646303,-500.0,0.00015,2]
[408430460,1773600646316,-500.0,0.00015,2]
[408430461,1773600646327,-500.0,0.00015,2]
[408430462,1773600646337,-500.0,0.00015,2]
[408430463,1773600646347,-500.0,0.00015,2]
[408430464,1773600646358,-500.0,0.00015,2]
[408430465,1773600646368,-500.0,0.00015,2]
[408430466,1773600646378,-500.0,0.00015,2]
[408430467,1773600646388,-500.0,0.00015,2]
[408430468,1773600646398,-591.64879885,0.00015,2]
[408430469,1773600646407,-969.70694024,0.00015,2]
[408430470,1773600646417,-500.0,0.00015,2]
[408430471,1773600646427,-500.0,0.00015,2]
[408430472,1773600646437,-500.0,0.00015,2]
[408430473,1773600646446,-500.0,0.00015,2]
[408430474,1773600646456,-953.17657253,0.00015,2]
[408430475,1773600646466,-254.063356,0.00015068,2]
[408430476,1773600646477,-500.0,0.00015099,2]
[408430477,1773600646487,-500.49,0.000151,2]
[408430478,1773600646497,-151.0,0.000151,2]
[408430479,1773600646506,-2982.60894464,0.00015196,2]
[408430480,1773600646516,-1200.0,0.00015316,2]
[408430481,1773600646527,-2000.0,0.00015342,2]
[408430482,1773600646537,-2000.0,0.00015342,2]
[408430483,1773600646547,-1035.2425874,0.00015342,2]
[408430484,1773600646558,-2000.0,0.00015342,2]
[408430485,1773600646568,-1472.03100896,0.00015491,2]
[408430486,1773600646578,-531.12,0.0001554,2]
[408430487,1773600646589,-38000.0,0.00015541,3]
[408430488,1773600646599,-38000.0,0.0001555,3]
[408430489,1773600646608,-38000.0,0.00015559,3]
[408430490,1773600646618,-38000.0,0.00015568,3]
[408430491,1773600646627,-202.73676709,0.00015573,2]
[408430492,1773600646637,-38000.0,0.00015576,3]
[408430493,1773600646646,-1108.067055,0.00015585,2]
[408430494,1773600646658,-1108.067055,0.00015585,2]
[408430495,1773600646668,-1108.067055,0.00015585,2]
[408430496,1773600646678,-1108.067055,0.00015585,2]
[408430497,1773600646687,-151.0,0.00015585,2]
[408430498,1773600646697,-151.0,0.00015585,2]
[408430499,1773600646707,-151.0,0.00015585,2]
[408430500,1773600646717,-38000.0,0.00015585,3]
[408430501,1773600646727,-38000.0,0.00015585,3]
[408430502,1773600646737,-200.0,0.00015593,2]
[408430503,1773600646747,-36366.38397451,0.00015594,3]
[408430504,1773600647150,-1633.61602549,0.00015594,3]
[408430505,1773600647160,-328.62171809,0.00015594,3]
[408430506,1773600647172,-37671.37828191,0.00015594,3]
[408430507,1773600647182,-12183.42096,0.00015594,3]
[408430508,1773600647215,-3947.79378949,0.00015594,3]
[408430509,1773600647735,-949.77920166,0.00015594,3]
[408430510,1773600647748,-766.5236735,0.00015594,3]
[408430511,1773601282029,-1359.28610172,8.151e-05,2]
[408430512,1773601346092,30000.0,0.0001,120]
[408430525,1773601802507,152.18,2e-05,2]
[408430526,1773601802769,152.18,2e-05,2]
[408430562,1773601831729,-305.668248,2.079e-05,2]
[408430565,1773601831746,-4694.331752,2.079e-05,2]
[408430567,1773601831759,-152.18,2.1e-05,2]
[408430569,1773601831769,-152.18,2.1e-05,2]
[408430571,1773601831780,-1.308248,2.2e-05,2]
[408430609,1773601837807,-150.871752,2.2e-05,2]
[408430610,1773601837825,-152.18,2.2e-05,2]
[408430611,1773601837836,-1200.0,8.399e-05,2]
[408430612,1773601837848,-264.90688368,8.4e-05,2]
[408430613,1773601837859,-497.8621712,8.4e-05,2]
[408430614,1773601837872,-492.29413332,8.4e-05,2]
[408430615,1773601837884,-2.45857546,8.4e-05,2]
[408430616,1773601837908,-451.85813175,8.4e-05,2]
[408430617,1773601837919,-16947.96221768,8.48e-05,2]
[408430618,1773601837931,-475276.62010171,8.607e-05,2]
[408430619,1773601837945,-395087.5688782,8.607e-05,2]
[408430620,1773601837957,-237.196,8.63e-05,2]
[408430621,1773601837967,-186.14324335,8.63e-05,2]
[408430622,1773601837978,-500.0,8.683e-05,2]
[408430623,1773601837988,-500.0,8.683e-05,2]
[408430624,1773601838000,-285.54683059,8.683e-05,2]
[408430625,1773601838012,-500.0,8.706e-05,2]
[408430626,1773601838024,-500.0,8.706e-05,2]
[408430627,1773601838035,-500.0,8.706e-05,2]
[408430628,1773601838048,-500.0,8.706e-05,2]
[408430629,1773601838059,-500.0,8.706e-05,2]
[408430630,1773601838069,-215.70564444,8.706e-05,2]
[408430631,1773601838079,-500.0,8.706e-05,2]
[408430632,1773601838089,-500.0,8.706e-05,2]
[408430633,1773601838100,-500.0,8.706e-05,2]
[408430634,1773601838110,-204.8229372,8.706e-05,2]
[408430635,1773601838121,-359.45571514,8.706e-05,2]
[408430636,1773601838133,-500.0,8.706e-05,2]
[408430637,1773601838144,-500.0,8.706e-05,2]
[408430638,1773601838154,-500.0,8.706e-05,2]
[408430639,1773601838166,-500.0,8.706e-05,2]
[408430640,1773601838177,-500.0,8.706e-05,2]
[408430641,1773601838187,-2185934.43118791,8.707e-05,2]
[408430642,1773601838200,-214065.56881209,8.707e-05,2]
[408430643,1773601838210,-500.0,8.783e-05,2]
[408430644,1773601838221,-600.0,8.982e-05,2]
[408430645,1773601838231,-544.70587945,9.231e-05,2]
[408430646,1773601838241,-1000.0,9.231e-05,2]
[408430647,1773601838252,-1394.0,9.43e-05,2]
[408430648,1773601838262,-2195.0,9.43e-05,2]
[408430649,1773601838272,-640.0,9.43e-05,2]
[408430650,1773601838283,-500.0,9.617e-05,2]
[408430651,1773601838293,-500.0,9.617e-05,2]
[408430652,1773601838303,-500.0,9.617e-05,2]
[408430653,1773601838313,-500.0,9.617e-05,2]
[408430654,1773601838324,-243.4376958,9.617e-05,2]
[408430655,1773601838335,-537.6845,9.617e-05,2]
[408430656,1773601838345,-2150.738,9.617e-05,2]
[408430657,1773601838355,-5376.845,9.617e-05,2]
[408430658,1773601838366,-500.0,9.672e-05,2]
[408430659,1773601838377,-5575.788265,9.672e-05,2]
[408430660,1773601838823,-2124.58433286,9.727e-05,2]
[408430661,1773601838850,-720.0,9.88e-05,2]
[408430662,1773601838863,-1202.52869284,9.9e-05,2]
[408430663,1773601838872,-500.0,9.946e-05,2]
[408430664,1773601838882,-2230.315306,0.00010165,2]
[408430665,1773601838892,-5802.65641033,0.00010215,120]
[408430674,1773601843154,-380.183,9.705e-05,2]
[408430675,1773601843164,-50.0954889,0.00010215,120]
[408430676,1773601843519,-183.0,9.705e-05,2]
[408430677,1773601843528,-699.6800012,0.00010215,120]
[408430678,1773601843539,-342.61999997,0.00010215,120]
[408430679,1773601843550,-796.97488972,0.00010215,120]
[408430680,1773601843559,-11227.0895,0.00010568,2]
[408430681,1773601843569,-2312.83697232,0.00010713,2]
[408430682,1773601843578,-864.0,0.00010868,2]
[408430683,1773601843588,-5000.0,0.00010958,2]
[408430684,1773601843597,-1872.40756892,0.00011261,2]
[408430686,1773601843611,-526.00437138,0.00011261,2]
[408430687,1773601843622,-2487.15318209,0.00011809,2]
[408430688,1773601843632,-831.99443142,0.00011955,2]
[408430721,1773601846049,-168.00556858,0.00011955,2]
[408430722,1773601846060,-2579.17784983,0.00012357,2]
[408430723,1773601846070,-183.0,0.00012705,2]
[408430724,1773601846080,-2674.60743027,0.00012905,2]
[408430725,1773601846089,-1000.0,0.0001315,2]
[408430726,1773601846099,-244.0,0.0001315,2]
[408430727,1773601846108,-2773.56790519,0.00013453,2]
[408430728,1773601846117,-664.840233,0.00013699,2]
[408430729,1773601846127,-664.840233,0.00013699,2]
[408430730,1773601846137,-664.840233,0.00013699,2]
[408430731,1773601846146,-664.840233,0.00013699,2]
[408430732,1773601846155,-500.0,0.00013699,2]
[408430733,1773601846164,-500.0,0.00013699,2]
[408430734,1773601846173,-500.0,0.00013699,2]
[408430735,1773601846183,-2000.0,0.00013699,7]
[408430736,1773601846192,-500.0,0.00013699,2]
[408430737,1773601846201,-1000.0,0.00013699,2]
[408430738,1773601846210,-3000.27399226,0.00014,2]
[408430739,1773601846219,-2876.18991768,0.00014001,2]
[408430740,1773601846228,-160.0,0.00014054,3]
[408430741,1773601846238,-530.27155952,0.00014196,2]
[408430742,1773601846247,-2000.0,0.00014224,7]
[408430744,1773601846256,-1000.0,0.00014247,2]
[408430746,1773601846265,-171.24499293,0.00014247,2]
[408430747,1773601846274,-313.62964401,0.00014247,2]
[408430748,1773601846283,-1000.0,0.00014247,2]
[408430749,1773601846292,-1000.0,0.00014465,2]
[408430750,1773601846301,-492.0,0.00014465,2]
[408430751,1773601846310,-1802.73346224,0.00014549,2]
[408430752,1773601846319,-2000.0,0.00014749,7]
[408430753,1773601846328,-161.67104768,0.00014785,2]
[408430754,1773601846337,-1324.70536949,0.00014795,2]
[408430755,1773601846346,-1500.0,0.00014795,2]
[408430756,1773601846356,-12367.0,0.00015,2]
[408430757,1773601846365,-2995.0,0.00015,2]
[408430758,1773601846374,-769.0,0.00015,2]
[408430759,1773601846383,-1006.50237393,0.00015,7]
[408430760,1773601846392,-351.43508834,0.00015,2]
[408430761,1773601846401,-600.0,0.00015,2]
[408430762,1773601846411,-600.0,0.00015,3]
[408430763,1773601846420,-400.0,0.00015,4]
[408430764,1773601846429,-400.0,0.00015,5]
[408430765,1773601846439,-270.83333333,0.00015,2]
[408430766,1773601846449,-500.0,0.00015,2]
[408430767,1773601846458,-203.250684,0.00015068,2]
[408430768,1773601846468,-442.03300715,0.000151,2]
[408430769,1773601846478,-795.65941286,0.000151,2]
[408430770,1773601846488,-1414.50562287,0.000151,2]
[408430771,1773601846498,-394.57144796,0.000151,2]
[408430772,1773601846508,-450.93879767,0.000151,2]
[408430773,1773601846518,-276.11866807,0.0001515,20]
[408430774,1773601846528,-160.0,0.00015159,4]
[408430775,1773601846538,-98.81663639,0.0001526,30]
[408430826,1773603031914,-5000.0,7.396e-05,2]
[408430828,1773603031924,-893.08006066,7.471e-05,2]
[408430830,1773603031935,-389.76196604,7.471e-05,2]
[408430832,1773603031944,-127.98888979,8.089e-05,2]
[408430976,1773603038236,-406.01111021,8.089e-05,2]
[408430977,1773603038246,-2940.74700455,8.154e-05,2]
[408430978,1773603038256,-1200.0,8.252e-05,2]
[408430979,1773603038267,-300.0,8.253e-05,2]
[408430980,1773603038278,-300.0,8.253e-05,2]
[408430981,1773603038289,-6132.88650631,8.254e-05,2]
[408430982,1773603038299,-6838.247516,8.354e-05,2]
[408430983,1773603038309,-1396.182551,8.396e-05,2]
[408430984,1773603038320,-6263.96318321,8.454e-05,2]
[408431004,1773603040416,-439.41939954,8.008e-05,2]
[408431015,1773603043238,-3647.48060046,8.008e-05,2]
[408431016,1773603043247,-963.00199785,8.454e-05,2]
[408431017,1773603043257,-7543.60852578,8.5e-05,2]
[408431018,1773603043266,-500.0,8.583e-05,2]
[408431019,1773603043275,-500.0,8.583e-05,2]
[408431020,1773603043284,-2526.13781718,8.583e-05,2]
[408431021,1773603043293,-383.71407802,8.62e-05,2]
[408431022,1773603043302,-1361.81615771,8.747e-05,2]
[408431027,1773603046148,-383.71407802,8.747e-05,2]
[408431035,1773603602472,178.18,2e-05,2]
[408431038,1773604229891,5000.0,2.001e-05,2]
[408431045,1773604232033,-294.22129725,2.034e-05,2]
[408431047,1773604232043,-178.18,2.2e-05,2]
[408431049,1773604232052,-358.25670877,4.898e-05,2]
[408431132,1773604238316,-841.74329123,4.898e-05,2]
[408431133,1773604238326,-300.0,4.899e-05,2]
[408431134,1773604238336,-94.99383812,4.899e-05,2]
[408431135,1773604238474,-205.00616188,4.899e-05,2]
[408431136,1773604238485,-1000.0,4.9e-05,2]
[408431137,1773604238496,-1000.0,4.9e-05,2]
[408431138,1773604238507,-1000.0,4.9e-05,2]
[408431139,1773604238517,-1000.0,4.9e-05,2]
[408431140,1773604238533,-1000.0,4.9e-05,2]
[408431142,1773604238543,-148992.91180512,8.404e-05,2]
[408431143,1773604238554,-6070.95350308,8.65e-05,2]
[408431147,1773604241356,-967.61586635,8.65e-05,2]
[408431148,1773604241412,-587.0,8.65e-05,2]
[408431155,1773604244286,-352.86948732,8.65e-05,2]
[408431156,1773604244448,-300.0,8.65e-05,2]
[408431157,1773604244461,-2534.73802082,8.65e-05,2]
[408431158,1773604244472,-1540.817128,8.65e-05,2]
[408431159,1773604244484,-1891.0220345,8.65e-05,2]
[408431170,1773604246195,-11461.53119502,8.65e-05,2]
[408431171,1773604246250,-796.3799828,8.65e-05,2]
[408431175,1773604862912,-600.0,7.722e-05,2]
[408431390,1773605440842,-3098.12166908,3.322e-05,2]
[408431395,1773605443592,-5789.91189649,3.322e-05,2]
[408431396,1773605443603,-233.48610172,3.422e-05,2]
[408431397,1773605443612,-5000.0,3.457e-05,2]
[408431398,1773605443622,-167.284265,3.636e-05,2]
[408431399,1773605443632,-167.284265,7.272e-05,2]
[408431400,1773605443644,-1347.130937,7.69e-05,2]
[408431401,1773605443655,-1347.130937,8.013e-05,2]
[408431402,1773605443665,-187.88293215,8.053e-05,2]
[408431403,1773605443675,-500.0,8.183e-05,2]
[408431404,1773605443686,-500.0,8.183e-05,2]
[408431405,1773605443698,-500.0,8.183e-05,2]
[408431406,1773605443709,-500.0,8.183e-05,2]
[408431407,1773605443720,-500.0,8.183e-05,2]
[408431408,1773605443731,-1569.39112773,8.183e-05,2]
[408431409,1773605443744,-13930.64804938,8.183e-05,2]
[408431410,1773605443756,-927.1608562,8.183e-05,2]
[408431411,1773605443769,-1500.70910299,8.183e-05,2]
[408431412,1773605443780,-778.35359997,8.183e-05,2]
[408431419,1773605446390,-171.09511219,8.183e-05,2]
[408431421,1773605446399,-500.0,8.198e-05,2]
[408431422,1773605446409,-500.0,8.198e-05,2]
[408431423,1773605446418,-500.0,8.198e-05,2]
[408431424,1773605446427,-500.0,8.198e-05,2]
[408431425,1773605446436,-500.0,8.198e-05,2]
[408431426,1773605446445,-500.0,8.198e-05,2]
[408431427,1773605446455,-500.0,8.198e-05,2]
[408431428,1773605446466,-500.0,8.198e-05,2]
[408431429,1773605446475,-500.0,8.198e-05,2]
[408431430,1773605446485,-500.0,8.198e-05,2]
[408431431,1773605446494,-500.0,8.198e-05,2]
[408431432,1773605446503,-500.0,8.198e-05,2]
[408431433,1773605446513,-276.06091282,8.198e-05,2]
[408431434,1773605446522,-500.0,8.198e-05,2]
[408431435,1773605446531,-362.78304958,8.198e-05,2]
[408431436,1773605446541,-500.0,8.198e-05,2]
[408431437,1773605446550,-500.0,8.198e-05,2]
[408431438,1773605446559,-500.0,8.198e-05,2]
[408431439,1773605446569,-500.0,8.198e-05,2]
[408431440,1773605446578,-500.0,8.198e-05,2]
[408431441,1773605446587,-500.0,8.198e-05,2]
[408431442,1773605446596,-261.27775376,8.198e-05,2]
[408431443,1773605446606,-500.0,8.198e-05,2]
[408431444,1773605446615,-500.0,8.198e-05,2]
[408431445,1773605446624,-500.0,8.198e-05,2]
[408431446,1773605446633,-500.0,8.198e-05,2]
[408431447,1773605446643,-500.0,8.198e-05,2]
[408431448,1773605446652,-500.0,8.198e-05,2]
[408431449,1773605446661,-500.0,8.198e-05,2]
[408431450,1773605446670,-500.0,8.198e-05,2]
[408431451,1773605446679,-500.0,8.198e-05,2]
[408431452,1773605446688,-500.0,8.198e-05,2]
[408431453,1773605446697,-500.0,8.198e-05,2]
[408431454,1773605446706,-500.0,8.198e-05,2]
[408431455,1773605446715,-81883.93886744,8.201e-05,2]
[408431456,1773605446727,-4656.80106703,8.201e-05,2]
[408431457,1773605446749,-610.99505787,8.201e-05,2]
[408431466,1773606118724,10000.0,0.0001,120]
[408431495,1773606632373,-602.08482429,6.798e-05,2]
[408431499,1773606632398,-397.91517571,6.798e-05,2]
[408431502,1773606632418,-1259.76777739,6.798e-05,2]
[408431676,1773606638694,-5000.0,6.73e-05,2]
[408431678,1773606638705,-516.0,6.798e-05,2]
[408431679,1773606638718,-300.0,7.006e-05,2]
[408431680,1773606638729,-159.18970006,7.821e-05,2]
[408431681,1773606638741,-300.0,7.899e-05,2]
[408431682,1773606638752,-300.0,7.899e-05,2]
[408431683,1773606638762,-2543.01748015,7.9e-05,2]
[408431684,1773606638776,-2569.92038762,7.9e-05,2]
[408431685,1773606638789,-11209.56846175,7.9e-05,2]
[408431686,1773606638800,-500.0,7.978e-05,2]
[408431687,1773606638810,-500.0,7.978e-05,2]
[408431688,1773606638822,-500.0,7.978e-05,2]
[408431689,1773606638834,-500.0,7.978e-05,2]
[408431690,1773606638845,-500.0,7.978e-05,2]
[408431691,1773606638856,-500.0,7.978e-05,2]
[408431692,1773606638866,-500.0,7.978e-05,2]
[408431693,1773606638879,-500.0,7.978e-05,2]
[408431694,1773606638891,-500.0,7.978e-05,2]
[408431695,1773606638904,-500.0,7.978e-05,2]
[408431696,1773606638916,-500.0,7.978e-05,2]
[408431697,1773606638928,-500.0,7.978e-05,2]
[408431698,1773606638940,-500.0,7.978e-05,2]
[408431699,1773606638951,-500.0,7.978e-05,2]
[408431700,1773606638962,-500.0,7.978e-05,2]
[408431701,1773606638973,-500.0,7.978e-05,2]
[408431702,1773606638984,-500.0,7.978e-05,2]
[408431703,1773606638994,-500.0,7.978e-05,2]
[408431704,1773606639005,-500.0,7.978e-05,2]
[408431705,1773606639016,-500.0,7.978e-05,2]
[408431706,1773606639026,-500.0,7.978e-05,2]
[408431707,1773606639037,-500.0,7.978e-05,2]
[408431708,1773606639048,-500.0,7.978e-05,2]
[408431709,1773606639059,-403.75555074,7.978e-05,2]
[408431710,1773606639070,-500.0,7.979e-05,2]
[408431711,1773606639081,-500.0,7.979e-05,2]
[408431712,1773606639091,-500.0,7.979e-05,2]
[408431713,1773606639102,-500.0,7.979e-05,2]